bitfinex/quotes_SOLUSD_20241021
["timestamp","ask_amount","ask_price","bid_price","bid_amount"]
[1729483096252,0.75268594,169.5,169.49,3.83812299]
[1729483097148,0.75268594,169.5,169.49,1.4761448]
[1729483097648,6.75238594,169.5,169.49,1.4761448]
[1729483098025,0.85268594,169.5,169.49,1.4761448]
[1729483098346,0.85268594,169.5,169.49,1.47634698]
[1729483101848,0.85268594,169.5,169.45,5.9013]
[1729483102156,0.85268594,169.5,169.46,3.83850826]
[1729483102446,0.85268594,169.5,169.47,3.83850826]
[1729483102747,0.85268594,169.5,169.48,3.83850826]
[1729483102924,0.85268594,169.5,169.45,5.9013]
[1729483102925,0.85268594,169.5,169.49,1.47634852]
[1729483103351,0.75268594,169.5,169.49,1.47634852]
[1729483105345,0.75268594,169.5,169.43,23.876884]
[1729483105548,0.75268594,169.5,169.49,1.47633621]
[1729483105758,0.75268594,169.5,169.49,3.83829715]
[1729483109240,0.75268594,169.5,169.49,5.9]
[1729483109431,0.75268594,169.5,169.49,9.7374289]
[1729483111647,0.75268594,169.5,169.49,33.5143129]
[1729483111853,0.75268594,169.5,169.49,49.3557129]
[1729483112655,0.75268594,169.5,169.49,49.25524251]
[1729483112827,0.6192591,169.52,169.51,5.8993]
[1729483113032,0.6192591,169.52,169.51,33.51314251]
[1729483116055,0.6192591,169.52,169.51,33.5128662]
[1729483119541,0.6192591,169.52,169.51,32.0372657]
[1729483119751,0.6192591,169.52,169.51,33.51294176]
[1729483130049,0.6192591,169.52,169.51,32.03723864]
[1729483130348,0.6192591,169.52,169.51,33.51289779]
[1729483133562,0.6192591,169.52,169.51,32.03723595]
[1729483133750,0.6192591,169.52,169.51,33.51289342]
[1729483137075,0.6192591,169.52,169.51,29.776184]
[1729483137252,0.6192591,169.52,169.51,32.13721771]
[1729483137461,0.6192591,169.52,169.51,33.61286378]
[1729483139181,0.6192591,169.52,169.51,33.51286378]
[1729483139475,0.6192591,169.52,169.51,33.61286378]
[1729483141186,0.6192591,169.52,169.51,33.61241721]
[1729483142064,0.6192591,169.52,169.51,33.61233867]
[1729483143161,0.6192591,169.52,169.51,29.776184]
[1729483143487,0.6192591,169.52,169.51,33.61232818]
[1729483146661,0.6192591,169.52,169.51,33.61218852]
[1729483149579,0.6192591,169.52,169.51,9.73530452]
[1729483150086,0.6192591,169.52,169.51,12.19625291]
[1729483150292,0.6192591,169.52,169.51,9.83563474]
[1729483150779,0.6192591,169.52,169.51,33.61251874]
[1729483153392,0.6192591,169.52,169.51,33.51251874]
[1729483153605,0.6192591,169.52,169.51,29.776184]
[1729483153881,0.6192591,169.52,169.51,33.61254036]
[1729483156074,0.6192591,169.52,169.51,33.51254036]
[1729483156267,0.6192591,169.52,169.51,33.61254036]
[1729483157184,0.6192591,169.52,169.51,33.51254036]
[1729483157385,0.6192591,169.52,169.51,33.61254036]
[1729483157870,0.6192591,169.52,169.51,33.51254036]
[1729483158074,0.6192591,169.52,169.51,33.61254036]
[1729483159885,0.6192591,169.52,169.51,9.73565636]
[1729483160690,0.6192591,169.52,169.51,9.73578177]
[1729483161070,0.6192591,169.52,169.51,33.51266577]
[1729483167585,0.6192591,169.52,169.51,29.676184]
[1729483167894,0.6192591,169.52,169.51,33.51289352]
[1729483170973,0.6192591,169.52,169.51,3.83670952]
[1729483171179,0.6192591,169.52,169.51,3.83669153]
[1729483174593,0.6192591,169.52,169.51,3.8369208]
[1729483178104,0.6192591,169.52,169.5,20.6485]
[1729483178303,0.6192591,169.52,169.51,1.47574317]
[1729483178483,0.6192591,169.52,169.51,3.83693224]
[1729483181677,0.6192591,169.52,169.51,3.83693675]
[1729483182015,0.6192591,169.52,169.51,2.36119185]
[1729483182304,0.6192591,169.52,169.51,4.72238572]
[1729483182502,0.6192591,169.52,169.51,3.83694004]
[1729483183381,0.6192591,169.52,169.51,9.73624004]
[1729483183580,0.6192591,169.52,169.51,33.51312404]
[1729483185310,0.6192591,169.52,169.51,29.676184]
[1729483185516,0.6192591,169.52,169.51,33.51306939]
[1729483192490,0.6192591,169.52,169.51,29.676184]
[1729483192704,0.6192591,169.52,169.51,32.62748738]
[1729483192915,0.6192591,169.52,169.51,35.87391381]
[1729483193911,0.6192591,169.52,169.51,33.51285942]
[1729483198816,0.6192591,169.52,169.51,9.73597542]
[1729483199416,0.6192591,169.52,169.51,5.8993]
[1729483199598,0.6192591,169.52,169.51,9.73604028]
[1729483200429,0.6192591,169.52,169.51,33.51292428]
[1729483201607,0.6192591,169.52,169.51,3.83674028]
[1729483202706,0.6192591,169.52,169.5,14.7489]
[1729483203818,0.6192591,169.52,169.51,2.36137559]
[1729483204901,0.6192591,169.52,169.5,14.7489]
[1729483205317,0.6192591,169.52,169.5,20.6483]
[1729483205524,0.6192591,169.52,169.51,3.8372552]
[1729483206917,0.6192591,169.52,169.51,1.47586738]
[1729483207098,0.6192591,169.52,169.51,3.83709282]
[1729483207422,0.6192591,169.52,169.51,2.36128789]
[1729483208627,0.6192591,169.52,169.51,6.19836293]
[1729483209504,0.6192591,169.52,169.51,35.87454693]
[1729483211110,0.6192591,169.52,169.51,35.87416319]
[1729483211606,0.6192591,169.52,169.51,35.97416319]
[1729483211808,0.1,169.59,169.51,30.07486319]
[1729483212016,0.1,169.59,169.55,5.8979]
[1729483212201,0.1,169.59,169.56,3.8366913]
[1729483212407,0.1,169.59,169.57,3.8366913]
[1729483212610,0.1,169.59,169.58,1.4756505]
[1729483213611,0.1,169.6,169.58,3.83635579]
[1729483213811,0.1,169.6,169.59,1.4756505]
[1729483214735,0.1,169.6,169.57,5.8972]
[1729483214934,0.1,169.6,169.58,3.83613625]
[1729483215220,0.1,169.6,169.59,1.47543702]
[1729483218301,0.1,169.6,169.59,1.47543456]
[1729483221514,5.9962,169.6,169.54,8.25879544]
[1729483221831,15.913,169.61,169.55,3.83623353]
[1729483221832,0.1,169.57,169.55,3.83623353]
[1729483222002,0.1,169.55,169.51,5.8992]
[1729483222206,0.1,169.55,169.52,3.83673453]
[1729483222427,0.1,169.55,169.53,3.83673453]
[1729483222607,0.1,169.55,169.49,20.6494]
[1729483222608,0.1,169.54,169.49,20.6494]
[1729483222809,0.1,169.54,169.5,3.83700977]
[1729483223011,0.1,169.54,169.51,3.83700977]
[1729483223313,0.1,169.54,169.52,3.83700977]
[1729483223513,0.1,169.53,169.49,20.6494]
[1729483223713,0.1,169.53,169.5,3.83709016]
[1729483223924,0.1,169.52,169.51,3.83709016]
[1729483224314,5.999,169.52,169.51,3.83709016]
[1729483225413,5.999,169.52,169.51,1.47580391]
[1729483227113,5.8996,169.51,169.46,2.3617784]
[1729483227308,5.8996,169.51,169.45,14.7536]
[1729483227309,5.8996,169.51,169.47,3.837892]
[1729483227511,5.8996,169.51,169.48,3.837892]
[1729483227733,0.1,169.5,169.49,3.837892]
[1729483228034,0.1,169.5,169.49,1.4761136]
[1729483228727,5.9997,169.5,169.49,1.47616168]
[1729483229216,0.1,169.5,169.49,1.47616168]
[1729483229825,0.1,169.51,169.49,3.83802037]
[1729483230026,0.1,169.52,169.5,1.47616168]
[1729483230327,6.5500365,169.54,169.51,1.4760333]
[1729483230328,0.6517365,169.54,169.51,1.4760333]
[1729483230536,0.6517365,169.54,169.52,1.4760333]
[1729483230830,0.7517365,169.54,169.53,1.4760333]
[1729483231060,0.6517365,169.54,169.53,1.4760333]
[1729483234130,0.6517365,169.54,169.53,3.83789199]
[1729483234639,0.6517365,169.54,169.53,1.4760333]
[1729483235242,0.7517365,169.54,169.53,1.4760333]
[1729483235443,0.7517365,169.54,169.5,20.6486]
[1729483235444,0.1,169.52,169.5,14.749]
[1729483235750,0.1,169.53,169.51,3.83721746]
[1729483235934,0.1,169.53,169.52,1.47588753]
[1729483238848,0.1,169.53,169.5,14.749]
[1729483239043,0.1,169.53,169.52,1.47591787]
[1729483239348,0.7517365,169.54,169.52,1.47591555]
[1729483239648,0.7517365,169.54,169.5,17.11046488]
[1729483239837,0.7517365,169.54,169.51,1.47591588]
[1729483240041,0.7517365,169.54,169.5,17.11046488]
[1729483240042,0.1,169.53,169.52,1.47591588]
[1729483241646,0.1,169.53,169.5,14.749]
[1729483241852,0.1,169.52,169.51,1.47591822]
[1729483243133,5.999,169.52,169.51,1.47591822]
[1729483243333,0.1,169.48,169.47,2.36146916]
[1729483243535,0.1,169.48,169.47,3.83759596]
[1729483244154,0.1,169.48,169.47,1.4761268]
[1729483244946,0.1,169.48,169.47,3.83759596]
[1729483245136,0.1,169.48,169.47,1.4761268]
[1729483245553,0.1,169.48,169.47,3.83759596]
[1729483245757,0.1,169.48,169.47,1.4761268]
[1729483246238,0.1,169.48,169.47,3.83759596]
[1729483246432,0.1,169.48,169.47,1.4761268]
[1729483246842,0.1,169.48,169.47,3.83759596]
[1729483247046,0.1,169.48,169.47,1.4761268]
[1729483247455,0.1,169.48,169.47,3.83759596]
[1729483247656,0.1,169.48,169.47,1.4761268]
[1729483248041,0.1,169.48,169.47,3.83759596]
[1729483248347,0.1,169.48,169.47,1.4761268]
[1729483249453,0.1,169.48,169.45,2.36146916]
[1729483249454,0.1,169.48,169.46,2.36146916]
[1729483249640,0.1,169.48,169.47,1.47613439]
[1729483251353,6.0004,169.48,169.47,1.47613439]
[1729483251556,0.1,169.47,169.43,8.26391502]
[1729483251851,0.1,169.47,169.44,3.83814423]
[1729483252057,0.1,169.47,169.45,1.47632921]
[1729483252365,0.1,169.47,169.43,8.26391502]
[1729483252654,0.1,169.45,169.44,1.47638341]
[1729483253939,0.64641125,169.46,169.44,7.37808341]
[1729483254162,0.64641125,169.46,169.45,1.47638341]
[1729483255435,0.74641125,169.46,169.45,1.47638341]
[1729483255658,6.64741125,169.46,169.44,1.47638341]
[1729483255839,6.64741125,169.46,169.45,1.47638341]
[1729483256243,6.64741125,169.46,169.41,5.9028]
[1729483256446,0.74641125,169.46,169.42,1.47640925]
[1729483256646,0.74641125,169.46,169.43,1.47640925]
[1729483256855,0.74641125,169.46,169.44,1.47640925]
[1729483257063,0.74641125,169.46,169.41,5.9028]
[1729483257239,0.74641125,169.46,169.42,1.47640827]
[1729483257439,0.74641125,169.46,169.43,1.47640827]
[1729483257637,0.74641125,169.46,169.44,1.47640827]
[1729483257935,0.74641125,169.46,169.41,8.26461502]
[1729483258136,0.74641125,169.46,169.42,1.47641088]
[1729483258359,0.74641125,169.46,169.43,1.47641088]
[1729483258564,0.74641125,169.46,169.44,1.47641088]
[1729483258759,0.74641125,169.46,169.41,5.9028]
[1729483259068,0.74641125,169.46,169.42,1.47640404]
[1729483259242,0.74641125,169.46,169.43,1.47640404]
[1729483259442,0.74641125,169.46,169.44,1.47640404]
[1729483259645,0.74641125,169.46,169.41,5.9028]
[1729483259865,0.74641125,169.46,169.42,1.47641088]
[1729483260044,0.1,169.44,169.42,1.47641088]
[1729483260252,0.1,169.44,169.43,1.47641088]
[1729483260545,0.1,169.43,169.42,1.47641088]
[1729483260755,0.1,169.45,169.42,7.37871088]
[1729483260949,0.74641125,169.46,169.43,1.47641088]
[1729483261151,0.1,169.45,169.44,1.47641088]
[1729483261464,0.74641125,169.46,169.44,1.47641088]
[1729483261645,0.1,169.44,169.42,8.26455741]
[1729483261846,0.1,169.44,169.43,1.47639646]
[1729483263345,0.1,169.44,169.38,2.36225741]
[1729483263657,0.1,169.44,169.39,1.47651146]
[1729483263857,0.1,169.44,169.4,1.47651146]
[1729483264041,0.1,169.42,169.41,1.47651146]
[1729483264458,0.1,169.42,169.4,1.47651146]
[1729483264660,0.1,169.42,169.41,1.47651146]
[1729483264849,0.1,169.42,169.4,1.47651146]
[1729483265063,0.1,169.42,169.41,1.47651146]
[1729483265249,0.1,169.42,169.4,1.47651146]
[1729483265451,0.1,169.42,169.41,1.47651146]
[1729483265859,0.1,169.42,169.4,1.47653505]
[1729483266057,0.1,169.41,169.4,1.47653505]
[1729483266271,0.1,169.41,169.4,1.47653571]
[1729483266458,0.1,169.42,169.4,1.47653571]
[1729483266768,0.1,169.42,169.41,1.47653571]
[1729483268459,0.1,169.42,169.41,1.47653505]
[1729483269654,0.1,169.42,169.41,1.47655487]
[1729483270062,0.1,169.42,169.39,1.47655487]
[1729483270262,0.1,169.42,169.4,1.47655487]
[1729483270447,0.1,169.42,169.41,1.47655487]
[1729483270956,0.74036146,169.42,169.38,8.26598779]
[1729483271271,0.74036146,169.42,169.39,1.47667751]
[1729483271478,0.1,169.41,169.4,1.47667751]
[1729483271661,0.1,169.39,169.38,2.36248779]
[1729483271860,0.1,169.39,169.38,1.47668937]
[1729483273651,0.1,169.41,169.38,1.47668937]
[1729483273961,0.64036146,169.42,169.41,5.9028]
[1729483274174,0.1,169.44,169.41,7.37948937]
[1729483274358,0.1,169.44,169.41,5.9028]
[1729483275179,0.1,169.44,169.42,1.4765339]
[1729483275485,0.1,169.43,169.42,1.4765339]
[1729483276357,0.1,169.43,169.41,5.9028]
[1729483276559,0.1,169.44,169.43,5.9021]
[1729483276761,0.1,169.44,169.43,7.3786339]
[1729483279486,0.1,169.44,169.43,1.4765339]
[1729483279986,0.1,169.42,169.41,17.11869274]
[1729483280159,0.1,169.42,169.41,16.23279968]
[1729483280361,0.1,169.42,169.41,3.83889242]
[1729483280563,6.0024,169.42,169.41,3.83889242]
[1729483280777,6.0024,169.42,169.41,1.47649968]
[1729483281071,0.1,169.42,169.41,1.47649968]
[1729483281275,0.1,169.42,169.38,2.36239274]
[1729483281276,0.1,169.42,169.39,1.47649968]
[1729483281456,0.1,169.41,169.4,1.4767413]
[1729483281656,0.1,169.44,169.42,5.9024]
[1729483281962,0.1,169.44,169.41,2.36255318]
[1729483282162,0.1,169.43,169.42,1.47659606]
[1729483282979,0.1,169.44,169.42,1.47659606]
[1729483283184,0.1,169.44,169.43,1.47659606]
[1729483283480,0.1,169.44,169.41,8.26535318]
[1729483283481,0.1,169.44,169.41,8.2652955]
[1729483283659,0.1,169.44,169.42,1.47655968]
[1729483283861,0.1,169.44,169.43,1.47655968]
[1729483284059,0.1,169.44,169.41,8.2652955]
[1729483284060,0.1,169.44,169.42,1.47655968]
[1729483284257,0.1,169.44,169.43,1.47655968]
[1729483284478,0.1,169.44,169.42,1.47655968]
[1729483284676,0.1,169.44,169.43,1.47655968]
[1729483285186,0.1,169.44,169.42,1.47655968]
[1729483285483,0.1,169.44,169.43,1.47655968]
[1729483285678,0.1,169.44,169.42,1.47655968]
[1729483285986,0.1,169.44,169.43,1.47655968]
[1729483286166,0.1,169.43,169.42,1.47655968]
[1729483286364,0.1,169.43,169.42,1.47656046]
[1729483286583,0.1,169.39,169.37,3.83919361]
[1729483286769,0.1,169.39,169.38,3.83923237]
[1729483286966,0.1,169.39,169.38,3.83945114]
[1729483289585,0.1,169.39,169.38,1.47671198]
[1729483290670,0.1,169.39,169.38,1.47675826]
[1729483291969,6.0035,169.39,169.38,1.47675826]
[1729483292469,0.1,169.39,169.35,2.36281322]
[1729483292670,0.1,169.38,169.37,5.9038]
[1729483292880,0.1,169.38,169.37,7.38063934]
[1729483293581,0.1,169.39,169.37,7.38063934]
[1729483293786,0.1,169.38,169.37,3.83965256]
[1729483293973,0.1,169.36,169.33,2.36281322]
[1729483294172,0.1,169.36,169.34,9.74490469]
[1729483294372,0.1,169.36,169.35,3.83970469]
[1729483300692,0.1,169.36,169.35,3.84013727]
[1729483301293,0.1,169.36,169.35,2.36316179]
[1729483301893,0.1,169.36,169.35,3.84013791]
[1729483303293,0.1,169.36,169.35,1.47697612]
[1729483303784,0.1,169.36,169.35,3.84013791]
[1729483303984,0.1,169.36,169.35,1.47697612]
[1729483304596,0.1,169.36,169.35,3.84013791]
[1729483307779,0.1,169.36,169.35,3.84023737]
[1729483311298,0.1,169.36,169.33,5.9055]
[1729483311476,0.1,169.36,169.35,3.84024004]
[1729483313375,0.1,169.37,169.35,3.84024004]
[1729483313578,0.1,169.37,169.36,3.84024004]
[1729483314984,0.1,169.37,169.36,3.84019964]
[1729483319685,0.1,169.38,169.36,3.84019964]
[1729483319912,0.1,169.37,169.36,5.9045]
[1729483320216,0.1,169.37,169.36,3.84001462]
[1729483321897,6.0042,169.37,169.36,3.84001462]
[1729483322288,0.1,169.37,169.36,3.84001462]
[1729483324609,0.1,169.37,169.32,5.9058]
[1729483324803,0.1,169.37,169.36,1.47704214]
[1729483324987,0.1,169.37,169.36,3.84030956]
[1729483325593,6.0042,169.37,169.36,3.84030956]
[1729483327611,6.0042,169.37,169.36,1.47704214]
[1729483328214,6.0042,169.37,169.32,5.9058]
[1729483328419,0.1,169.33,169.32,5.9058]
[1729483328615,0.1,169.33,169.32,9.7462897]
[1729483329291,0.1,169.33,169.32,3.8404897]
[1729483329497,6.0056,169.33,169.32,3.8404897]
[1729483329709,0.1,169.33,169.32,3.8404897]
[1729483330091,0.69121776,169.36,169.32,9.7463897]
[1729483330092,0.1,169.34,169.32,9.7463897]
[1729483330296,0.1,169.34,169.33,3.8404897]
[1729483331920,0.1,169.34,169.33,3.84075231]
[1729483332303,0.1,169.34,169.33,3.84075654]
[1729483333023,6.0052,169.34,169.33,3.84075654]
[1729483333596,6.0052,169.34,169.33,1.47721405]
[1729483337223,0.1,169.34,169.29,3.84075654]
[1729483337521,0.1,169.34,169.3,3.84075654]
[1729483337820,0.1,169.34,169.31,1.47721405]
[1729483338124,0.1,169.34,169.29,2.36354249]
[1729483338125,6.0066,169.3,169.29,2.36354249]
[1729483338304,5.907,169.29,169.24,2.36354249]
[1729483338501,5.907,169.29,169.25,3.84124501]
[1729483338814,0.1,169.3,169.21,22.4485]
[1729483338815,0.1,169.22,169.21,22.4485]
[1729483339112,0.1,169.25,169.22,5.9094]
[1729483339318,0.1,169.25,169.21,20.381254]
[1729483339319,0.82962859,169.26,169.23,3.842454]
[1729483339517,0.82962859,169.26,169.25,5.9084]
[1729483339726,0.82962859,169.26,169.25,9.750854]
[1729483339923,0.72962859,169.26,169.25,9.750854]
[1729483342331,0.72962859,169.26,169.25,33.527738]
[1729483342517,0.72962859,169.26,169.25,33.52720105]
[1729483342718,0.72962859,169.26,169.25,29.685284]
[1729483342904,0.72962859,169.26,169.25,32.04949202]
[1729483343104,0.72962859,169.26,169.25,33.52712203]
[1729483346108,0.72962859,169.26,169.25,29.685284]
[1729483346307,0.72962859,169.26,169.25,33.52716254]
[1729483347128,0.72962859,169.26,169.25,9.75027854]
[1729483348308,0.82962859,169.26,169.25,3.84187854]
[1729483348508,0.82962859,169.26,169.25,1.47764559]
[1729483349029,0.72962859,169.26,169.25,3.84187854]
[1729483349237,0.72962859,169.26,169.25,9.75027854]
[1729483350036,0.72962859,169.26,169.25,33.52716254]
[1729483353737,0.72962859,169.26,169.25,29.685284]
[1729483353941,0.72962859,169.26,169.25,32.04982717]
[1729483354239,0.72962859,169.26,169.25,32.6409561]
[1729483354619,0.72962859,169.26,169.25,35.0054883]
[1729483357616,0.72962859,169.26,169.25,33.52765568]
[1729483357818,0.72962859,169.26,169.25,35.0054883]
[1729483359129,0.72962859,169.26,169.25,33.52764882]
[1729483359943,0.82962859,169.26,169.25,9.75076482]
[1729483360128,0.82962859,169.26,169.25,7.38623262]
[1729483360642,0.82962859,169.26,169.25,1.47783262]
[1729483362544,0.72962859,169.26,169.24,16.24981881]
[1729483362728,0.72962859,169.26,169.25,7.38631881]
[1729483362922,0.82962859,169.26,169.25,9.75085101]
[1729483365528,0.82962859,169.26,169.25,5.9084]
[1729483365731,0.82962859,169.26,169.25,7.38623709]
[1729483365929,0.82962859,169.26,169.25,9.75077644]
[1729483366341,0.82962859,169.26,169.25,3.84237644]
[1729483367049,0.82962859,169.26,169.25,1.47783709]
[1729483369951,0.1,169.23,169.22,5.9094]
[1729483370133,0.1,169.23,169.22,7.38752445]
[1729483371148,0.1,169.23,169.22,1.47812445]
[1729483376161,0.1,169.23,169.21,5.9096]
[1729483376454,0.1,169.23,169.22,1.47821948]
[1729483379743,0.1,169.23,169.22,7.38761948]
[1729483382355,0.1,169.23,169.22,5.9094]
[1729483382658,0.1,169.23,169.22,7.38761948]
[1729483385365,0.1,169.23,169.22,1.47821948]
[1729483386037,0.1,169.23,169.2,14.7747]
[1729483386238,0.1,169.23,169.21,9.75307488]
[1729483386440,0.1,169.22,169.21,8.27485377]
[1729483386758,0.1,169.22,169.21,9.75307521]
[1729483388850,0.1,169.22,169.21,9.75321924]
[1729483389960,0.1,169.22,169.21,9.75321045]
[1729483391543,0.1,169.22,169.21,3.84351045]
[1729483392264,0.1,169.22,169.2,20.6848]
[1729483393450,0.1,169.22,169.21,3.84361167]
[1729483398152,0.1,169.22,169.2,20.6848]
[1729483398350,0.1,169.22,169.21,3.84359823]
[1729483409073,0.1,169.22,169.2,20.6848]
[1729483409269,0.1,169.22,169.21,2.36530024]
[1729483409451,0.1,169.22,169.21,3.84361289]
[1729483410669,0.1,169.22,169.21,3.8437565]
[1729483411173,0.1,169.22,169.21,3.84382425]
[1729483416378,0.1,169.18,169.17,5.9109]
[1729483416546,0.1,169.18,169.17,9.75493654]
[1729483417361,0.1,169.18,169.17,3.84403654]
[1729483420169,0.1,169.18,169.17,3.84486386]
[1729483423067,0.96013722,169.19,169.17,3.84486386]
[1729483423251,0.86013722,169.19,169.18,3.84486386]
[1729483425276,0.86013722,169.19,169.18,27.62174786]
[1729483428282,0.1,169.21,169.19,5.9105]
[1729483428581,0.1,169.21,169.2,3.84486386]
[1729483429382,0.1,169.21,169.2,9.75496386]
[1729483429990,5.908,169.26,169.2,9.75496386]
[1729483430289,5.908,169.26,169.21,3.84486386]
[1729483430672,5.908,169.26,169.22,3.84486386]
[1729483430857,5.908,169.26,169.23,3.84486386]
[1729483431060,5.908,169.26,169.24,1.47879379]
[1729483431292,5.908,169.26,169.25,1.47879379]
[1729483434369,5.908,169.26,169.25,1.47837648]
[1729483437791,5.908,169.26,169.2,5.9101]
[1729483437993,0.88668975,169.25,169.21,2.36531853]
[1729483438284,0.88668975,169.25,169.22,3.84364437]
[1729483438593,0.88668975,169.25,169.23,3.84364437]
[1729483438798,0.88668975,169.25,169.24,3.84364437]
[1729483441286,0.88668975,169.25,169.24,3.84367575]
[1729483441585,6.79508975,169.25,169.24,3.84367575]
[1729483444800,6.79508975,169.25,169.24,1.47833683]
[1729483446274,0.88668975,169.25,169.19,2.36557218]
[1729483446471,0.88668975,169.25,169.2,3.84414299]
[1729483446700,5.9094,169.22,169.21,3.84414299]
[1729483446880,5.9094,169.22,169.21,1.47857081]
[1729483447810,0.2,169.24,169.21,1.47873404]
[1729483448005,5.9104,169.2,169.15,2.36597447]
[1729483448185,5.9104,169.2,169.16,3.84473119]
[1729483448502,5.9105,169.19,169.17,3.84473119]
[1729483448710,5.9105,169.19,169.18,3.84473119]
[1729483449307,5.9105,169.19,169.18,2.36607068]
[1729483449480,6.79739628,169.19,169.18,3.84486485]
[1729483451603,6.79739628,169.19,169.18,3.84486355]
[1729483451799,6.79739628,169.19,169.18,3.84486485]
[1729483453218,6.79739628,169.19,169.18,1.47879417]
[1729483455105,0.88689628,169.19,169.18,1.47888509]
[1729483455409,6.79739628,169.19,169.18,1.47888509]
[1729483458611,5.9112,169.17,169.13,2.36621589]
[1729483458921,5.9112,169.17,169.14,3.84515803]
[1729483459207,6.79848636,169.16,169.15,3.84515803]
[1729483460111,6.79848636,169.16,169.15,1.47894214]
[1729483460890,6.79848636,169.16,169.15,3.84515803]
[1729483461098,6.79848636,169.16,169.15,1.47894214]
[1729483462489,6.79848636,169.16,169.15,1.47900756]
[1729483462995,5.9122,169.15,169.12,2.36639826]
[1729483463195,5.9122,169.15,169.13,2.36639826]
[1729483463408,5.9122,169.15,169.14,1.47902426]
[1729483464111,5.9122,169.15,169.14,3.84542252]
[1729483464412,5.9122,169.15,169.14,1.47902426]
[1729483466995,5.9122,169.15,169.11,2.36639826]
[1729483466996,5.9122,169.15,169.12,1.47902426]
[1729483467196,5.9122,169.15,169.13,1.47902426]
[1729483467512,5.9122,169.15,169.11,2.36639826]
[1729483467710,5.9122,169.15,169.12,1.47919493]
[1729483467900,5.9122,169.15,169.13,1.47919493]
[1729483468098,5.9122,169.15,169.11,2.36639826]
[1729483468304,5.9122,169.15,169.12,1.47919493]
[1729483468498,0.88698636,169.16,169.13,1.47919493]
[1729483468702,0.88698636,169.16,169.14,1.47908014]
[1729483468908,0.88698636,169.16,169.15,1.47908772]
[1729483469108,0.88698636,169.16,169.12,3.84548598]
[1729483469313,0.88698636,169.16,169.13,1.47908772]
[1729483469505,0.88698636,169.16,169.14,1.47908772]
[1729483469706,0.88698636,169.16,169.15,1.47908772]
[1729483470301,0.88698636,169.16,169.15,1.47904417]
[1729483470617,0.88698636,169.16,169.13,1.47904417]
[1729483470804,0.88698636,169.16,169.14,1.47904417]
[1729483471004,0.88698636,169.16,169.15,1.47904417]
[1729483471699,0.88698636,169.16,169.13,1.47904417]
[1729483471902,0.88698636,169.16,169.14,1.47904417]
[1729483472102,0.88698636,169.16,169.15,1.47904417]
[1729483472312,0.88698636,169.16,169.13,1.47904417]
[1729483472519,0.88698636,169.16,169.14,1.47904417]
[1729483472721,0.88698636,169.16,169.15,1.47904417]
[1729483472899,0.88698636,169.16,169.13,1.47904417]
[1729483473218,0.88698636,169.16,169.12,2.36647068]
[1729483473219,0.88698636,169.16,169.14,1.47904417]
[1729483473518,0.88698636,169.16,169.15,1.47904417]
[1729483474108,0.88698636,169.16,169.15,1.47906117]
[1729483476010,0.88698636,169.16,169.12,2.36649788]
[1729483476011,0.88698636,169.16,169.13,1.47906117]
[1729483476212,0.88698636,169.16,169.14,1.47906117]
[1729483476526,0.88698636,169.16,169.15,1.47906117]
[1729483477024,0.88698636,169.16,169.13,1.47906117]
[1729483477225,0.88698636,169.16,169.14,1.47906117]
[1729483477428,0.88698636,169.16,169.11,8.27959788]
[1729483477606,0.88698636,169.16,169.12,1.47906441]
[1729483477804,0.88698636,169.16,169.13,1.47906441]
[1729483478002,0.88698636,169.16,169.14,1.47906441]
[1729483478203,0.88698636,169.16,169.11,8.27959788]
[1729483478508,0.88698636,169.16,169.12,1.47905592]
[1729483478710,0.88698636,169.16,169.13,1.47905592]
[1729483479013,0.88698636,169.16,169.14,1.47905592]
[1729483479326,0.88698636,169.16,169.11,8.27959788]
[1729483479529,0.88698636,169.16,169.12,1.47905069]
[1729483479712,0.88698636,169.16,169.13,1.47905069]
[1729483479914,0.88698636,169.16,169.14,1.47905069]
[1729483480109,0.88698636,169.16,169.11,8.27959788]
[1729483480310,0.88698636,169.16,169.12,1.4790569]
[1729483480510,0.88698636,169.16,169.13,1.4790569]
[1729483480711,0.88698636,169.16,169.14,1.4790569]
[1729483480998,0.88698636,169.16,169.11,5.9131]
[1729483481202,0.88698636,169.16,169.12,1.47913911]
[1729483481408,0.88698636,169.16,169.13,1.47913911]